bitfinex/quotes_ETHUSD_20250505
["timestamp","ask_amount","ask_price","bid_price","bid_amount"]
[1746476039593,3.0,1817.9,1817.7,10.12273113]
[1746476040502,3.0,1817.9,1817.7,15.62401001]
[1746476040710,3.0,1817.9,1817.7,15.60353035]
[1746476040911,3.0,1817.9,1817.8,5.50115524]
[1746476042202,3.8767611,1818.1,1817.8,5.50115524]
[1746476042501,5.39862401,1818.1,1817.8,5.50115524]
[1746476042822,5.46738474,1818.1,1817.8,5.50115524]
[1746476043022,3.0,1818.1,1817.9,5.50065525]
[1746476043393,16.48975477,1818.4,1818.0,5.50044973]
[1746476043591,3.0,1818.3,1818.1,5.50013585]
[1746476043791,3.0,1818.3,1818.0,11.00078805]
[1746476044123,3.0,1818.3,1818.0,11.00069078]
[1746476044291,3.0,1818.3,1818.0,5.50033832]
[1746476044720,3.0,1818.3,1818.0,11.00071582]
[1746476044913,3.0,1818.3,1818.0,5.50033832]
[1746476045110,3.0,1818.3,1818.1,10.10021916]
[1746476045316,3.0,1818.3,1818.1,4.6]
[1746476049832,8.49967445,1818.3,1818.1,4.6]
[1746476050134,3.0,1818.3,1818.1,4.6]
[1746476051022,3.7616,1818.4,1818.1,10.10009797]
[1746476051222,9.32989504,1818.4,1818.1,4.6]
[1746476052136,14.82951476,1818.4,1818.1,4.6]
[1746476052324,14.76071766,1818.4,1818.1,4.6]
[1746476052528,5.49968629,1818.3,1818.1,4.6]
[1746476054659,8.499945,1818.2,1818.1,4.6]
[1746476054864,9.32549142,1818.2,1818.1,4.6]
[1746476055165,3.7568,1818.2,1818.1,4.6]
[1746476056012,9.32549846,1818.2,1818.1,4.6]
[1746476056436,9.256745,1818.2,1818.1,4.6]
[1746476056764,10.94875173,1818.2,1818.1,4.6]
[1746476056936,5.50075602,1818.0,1817.8,0.02046388]
[1746476057148,3.0,1817.9,1817.8,4.6]
[1746476057456,3.0,1817.9,1817.8,10.10115524]
[1746476058346,3.0,1818.1,1817.8,10.10115524]
[1746476058528,8.50024849,1818.1,1817.8,10.10115524]
[1746476058729,3.0,1818.1,1817.8,15.60216591]
[1746476059242,3.0,1818.1,1817.8,15.60206543]
[1746476059443,3.0,1818.1,1817.8,10.10101067]
[1746476059649,3.0,1818.1,1817.9,5.50079393]
[1746476059948,3.0,1818.1,1817.8,10.10113644]
[1746476060357,3.0,1818.1,1817.8,10.12160722]
[1746476060761,3.0,1818.1,1817.8,10.12145269]
[1746476060971,3.77,1818.2,1817.9,5.50084393]
[1746476061140,5.49968487,1818.3,1818.0,5.50044045]
[1746476061460,8.5684301,1818.3,1818.0,5.50044045]
[1746476061976,8.49967876,1818.3,1818.0,5.50044045]
[1746476062141,8.56843009,1818.3,1818.0,5.50044045]
[1746476062340,8.49967876,1818.3,1818.0,5.50044045]
[1746476062572,8.56843008,1818.3,1818.0,5.50044045]
[1746476062869,8.49967876,1818.3,1818.0,5.50044045]
[1746476063069,8.56843008,1818.3,1818.0,5.50044045]
[1746476063273,8.56843008,1818.3,1817.9,6.26153954]
[1746476063274,11.07325417,1818.3,1817.9,6.26153954]
[1746476063580,5.50005348,1818.2,1817.9,6.26153954]
[1746476063944,6.30435348,1818.2,1817.9,5.50075963]
[1746476065045,6.30435348,1818.2,1817.8,10.10096501]
[1746476065745,5.50025027,1818.1,1817.8,4.6]
[1746476066577,6.39169053,1818.0,1817.8,4.6]
[1746476066802,8.50085263,1817.9,1817.8,4.6]
[1746476066974,8.56961539,1817.9,1817.8,4.6]
[1746476067178,9.32296788,1818.0,1817.8,4.6]
[1746476067490,14.89256962,1818.0,1817.8,4.6]
[1746476067650,5.50085263,1817.9,1817.8,4.6]
[1746476068147,10.89166792,1818.0,1817.8,4.6]
[1746476068148,3.8222,1818.0,1817.8,4.6]
[1746476068349,3.0,1818.0,1817.8,10.10103028]
[1746476070476,3.0,1818.0,1817.9,5.50085263]
[1746476071179,3.0,1818.0,1817.8,10.10103028]
[1746476071709,3.0,1818.0,1817.9,5.50085263]
[1746476072987,3.0,1818.0,1817.8,11.74430213]
[1746476073278,3.0,1818.0,1817.8,17.24524205]
[1746476073485,3.0,1818.0,1817.8,11.74421177]
[1746476073958,3.0,1818.0,1817.8,6.24327185]
[1746476074275,3.0,1818.0,1817.8,4.6]
[1746476074980,3.0,1818.0,1817.8,10.10110473]
[1746476075271,3.0,1818.0,1817.9,5.50085263]
[1746476075779,3.0,1818.0,1817.8,10.10094189]
[1746476075981,3.0,1818.0,1817.8,10.12141002]
[1746476076150,3.0,1818.0,1817.8,11.76672013]
[1746476076479,3.0,1818.0,1817.8,11.746252]
[1746476077179,3.0,1818.0,1817.8,10.10094189]
[1746476077553,5.50067437,1818.0,1817.8,4.6]
[1746476077754,5.50155426,1817.7,1817.3,24.46424531]
[1746476077955,8.50132331,1817.8,1817.4,10.10125177]
[1746476078175,0.06876969,1817.7,1817.4,10.10125177]
[1746476078398,8.50132331,1817.8,1817.4,10.10125177]
[1746476078567,14.07150775,1817.8,1817.4,10.10125177]
[1746476078767,5.5014841,1817.7,1817.4,10.10125177]
[1746476079207,8.50132331,1817.8,1817.4,10.10123381]
[1746476079368,8.57009235,1817.8,1817.5,5.5020483]
[1746476079700,8.57009235,1817.8,1817.4,10.10118271]
[1746476080905,0.8192,1817.7,1817.4,5.50218271]
[1746476081097,0.8192,1817.7,1817.5,4.599]
[1746476082702,0.8192,1817.7,1817.5,10.10106106]
[1746476084699,3.0,1817.8,1817.5,10.10106106]
[1746476084906,3.0,1817.8,1817.6,5.50175353]
[1746476087719,3.0,1817.8,1817.5,10.90043861]
[1746476088016,8.50126181,1817.8,1817.5,10.90043861]
[1746476088216,8.50126181,1817.8,1817.5,10.10103861]
[1746476088618,3.0,1817.8,1817.5,10.10103861]
[1746476089615,8.5699716,1817.8,1817.5,10.10103861]
[1746476090316,3.0,1817.8,1817.5,10.10103861]
[1746476090612,3.0,1817.8,1817.5,17.24120067]
[1746476090818,3.0,1817.8,1817.5,11.73916206]
[1746476091221,3.0,1817.8,1817.6,5.50163484]
[1746476092182,3.0,1817.8,1817.5,11.73916206]
[1746476092387,8.50123619,1817.8,1817.5,11.73916206]
[1746476092620,8.50123619,1817.8,1817.5,10.10084622]
[1746476093429,6.33056154,1817.9,1817.5,10.10084622]
[1746476093724,8.50116847,1817.8,1817.5,10.10084622]
[1746476094395,8.56993726,1817.8,1817.5,10.10084622]
[1746476095527,8.50116847,1817.8,1817.5,10.10084622]
[1746476096225,8.56993727,1817.8,1817.5,10.10084622]
[1746476096433,3.0687688,1817.8,1817.5,10.10084441]
[1746476096593,8.56992651,1817.8,1817.5,10.10084441]
[1746476096928,3.0687688,1817.8,1817.5,10.10084441]
[1746476097095,3.0,1817.8,1817.5,10.10084441]
[1746476097297,8.50116644,1817.8,1817.5,10.10084441]
[1746476097531,8.56993525,1817.8,1817.5,10.10084441]
[1746476098342,8.50116644,1817.8,1817.5,10.10084441]
[1746476098942,8.56993527,1817.8,1817.5,10.10084441]
[1746476099445,11.83399086,1817.7,1817.5,4.599]
[1746476099620,6.3322655,1817.7,1817.5,4.599]
[1746476100627,8.57053253,1817.6,1817.5,4.599]
[1746476100827,9.40343253,1817.6,1817.5,4.599]
[1746476101034,5.50215674,1817.5,1817.2,10.1019601]
[1746476101349,5.50215674,1817.5,1817.2,4.599]
[1746476101350,3.8329,1817.3,1817.2,4.599]
[1746476101552,3.0,1817.3,1817.2,4.599]
[1746476109408,3.0,1817.3,1817.2,10.1019716]
[1746476109540,3.0,1817.3,1817.2,4.599]
[1746476109928,3.0,1817.3,1817.2,10.1019716]
[1746476110160,3.0,1817.3,1817.2,11.94366876]
[1746476112031,16.49094167,1817.7,1817.2,11.94366876]
[1746476112032,10.2287,1817.7,1817.4,5.50210471]
[1746476112255,3.0,1817.7,1817.4,5.50210471]
[1746476112965,8.5014614,1817.7,1817.4,5.50210471]
[1746476113126,3.0,1817.7,1817.4,5.50210471]
[1746476113329,3.0,1817.7,1817.4,5.52260611]
[1746476113529,3.0,1817.7,1817.4,5.50210471]
[1746476114282,3.0,1817.7,1817.4,11.00433752]
[1746476114429,3.0,1817.7,1817.5,5.50196061]
[1746476114634,3.06877183,1817.8,1817.5,5.50196061]
[1746476115184,8.56996045,1817.8,1817.4,7.37853846]
[1746476115556,3.0,1817.6,1817.3,5.50259521]
[1746476115876,3.0,1817.6,1817.2,11.91460119]
[1746476115877,5.50254944,1817.4,1817.2,4.599]
[1746476116178,9.26264648,1817.3,1817.2,4.598]
[1746476117396,3.7598,1817.3,1817.2,4.598]
[1746476118221,3.0,1817.4,1817.3,5.50266879]
[1746476118369,3.0,1817.4,1817.2,10.10083303]
[1746476118567,3.0,1817.4,1817.2,10.1213494]
[1746476119092,3.0,1817.4,1817.2,12.08505555]
[1746476119256,3.0,1817.4,1817.2,12.06453918]
[1746476121485,3.0,1817.4,1817.2,4.598]
[1746476121858,3.0,1817.4,1817.2,4.61851732]
[1746476122063,3.0,1817.4,1817.2,10.12140766]
[1746476123290,3.0,1817.4,1817.2,15.62411946]
[1746476123501,3.0,1817.4,1817.2,10.10080098]
[1746476123662,3.0,1817.4,1817.2,10.12131812]
[1746476125862,3.0,1817.4,1817.2,15.62411249]
[1746476126064,3.0,1817.4,1817.3,5.50266879]
[1746476127693,3.0,1817.4,1817.2,10.10079437]
[1746476127997,3.0,1817.4,1817.2,10.1213115]
[1746476128882,3.0,1817.4,1817.2,15.62408431]
[1746476129083,3.0,1817.4,1817.2,10.10077281]
[1746476129527,3.0,1817.4,1817.2,10.12129006]
[1746476131136,3.0,1817.4,1817.2,15.62405785]
[1746476131293,3.0,1817.4,1817.3,5.50266879]
[1746476131491,3.0,1817.7,1817.5,5.50177823]
[1746476131699,6.27687639,1818.0,1817.7,5.50142934]
[1746476131903,11.84642747,1818.0,1817.6,10.10054918]
[1746476132103,11.77766391,1818.0,1817.6,10.10054918]
[1746476132420,8.56968111,1817.9,1817.6,4.599]
[1746476133126,10.05433686,1817.9,1817.6,4.599]
[1746476134296,9.98557289,1817.9,1817.6,4.599]
[1746476134693,3.0,1817.9,1817.6,10.12105792]
[1746476135120,3.0,1817.9,1817.6,10.10057237]
[1746476135428,8.50097504,1817.9,1817.6,10.10057237]
[1746476136131,3.0,1817.9,1817.6,10.10057237]
[1746476136315,3.0,1817.9,1817.6,10.1210579]
[1746476136719,3.0,1817.9,1817.6,10.10057237]
[1746476136916,8.50093858,1817.9,1817.6,10.10057237]
[1746476139042,8.50093858,1817.9,1817.6,4.599]
[1746476139207,14.00202146,1817.9,1817.6,4.599]
[1746476139407,8.50093858,1817.9,1817.6,4.599]
[1746476140135,3.0,1817.9,1817.6,10.12121036]
[1746476140338,3.0,1817.9,1817.7,5.50143525]
[1746476140639,8.50090798,1817.9,1817.6,11.66288654]
[1746476141448,0.7654,1818.2,1817.9,5.50081443]
[1746476141615,0.7654,1818.2,1818.0,4.596]
[1746476141942,9.26538529,1818.2,1818.0,4.596]
[1746476146645,3.7654,1818.2,1818.0,4.596]
[1746476146947,3.8282,1818.3,1818.0,10.09641992]
[1746476147550,9.3278963,1818.3,1818.0,4.596]
[1746476147740,9.39664913,1818.3,1818.0,4.596]
[1746476147912,10.33631404,1818.3,1818.0,4.596]
[1746476148127,15.83624149,1818.3,1818.0,4.596]
[1746476148329,10.26756121,1818.3,1818.0,4.596]
[1746476148532,15.7674629,1818.3,1818.0,4.596]
[1746476149165,10.26756121,1818.3,1818.0,4.596]
[1746476149370,9.39664933,1818.3,1818.0,4.596]
[1746476150960,9.39664933,1818.3,1818.0,10.09649978]
[1746476153662,14.89653873,1818.3,1818.0,4.596]
[1746476153826,9.3278963,1818.3,1818.0,4.596]
[1746476154156,9.3278963,1818.3,1818.0,10.09652665]
[1746476154354,14.89656494,1818.3,1818.0,4.596]
[1746476154581,9.3278963,1818.3,1818.0,4.596]
[1746476154748,14.89652407,1818.3,1818.0,4.596]
[1746476154947,14.82777103,1818.3,1818.0,4.596]
[1746476155461,9.3278963,1818.3,1818.0,4.596]
[1746476155655,14.82778434,1818.3,1818.0,4.596]
[1746476156067,9.3278963,1818.3,1818.0,4.596]
[1746476156246,9.39664934,1818.3,1818.0,4.596]
[1746476157873,5.49994768,1818.2,1818.0,4.596]
[1746476158274,8.49973227,1818.3,1818.0,10.09654349]
[1746476158484,3.06875304,1818.3,1818.0,10.09654349]
[1746476158844,8.5684793,1818.3,1818.0,4.596]
[1746476159184,8.5684793,1818.3,1818.0,10.0965156]
[1746476160383,3.06875304,1818.3,1818.0,10.09635822]
[1746476160681,8.56850475,1818.3,1818.0,10.09635822]
[1746476161391,3.06875304,1818.3,1818.0,10.09635822]
[1746476161686,3.0,1818.4,1818.2,5.499945]
[1746476162381,3.8294469,1818.5,1818.1,0.02045086]
[1746476162684,3.0,1818.5,1818.4,5.49934007]
[1746476162883,3.0,1818.5,1818.3,5.49956833]
[1746476163182,3.0,1818.5,1818.4,5.49934007]
[1746476163682,3.0,1818.5,1818.3,10.99886803]
[1746476163857,3.0,1818.5,1818.3,5.49942547]
[1746476164378,3.0,1818.5,1818.2,5.49976376]
[1746476164566,3.0,1818.5,1818.2,6.68270116]
[1746476164969,8.49907047,1818.5,1818.2,1.1829374]
[1746476165481,8.49907047,1818.5,1818.2,6.68286727]
[1746476166250,8.49912342,1818.5,1818.2,6.68286727]
[1746476166682,3.0,1818.5,1818.2,6.68286727]
[1746476166881,3.0,1818.5,1818.3,6.16772198]
[1746476167098,6.35961549,1818.7,1818.3,6.16772198]
[1746476167099,0.7923,1818.7,1818.5,5.49883541]
[1746476167252,10.2287,1819.0,1818.7,5.49834196]
[1746476167451,5.49740603,1819.1,1818.7,7.41466536]
[1746476167685,5.56612582,1819.1,1818.8,4.593]
[1746476167889,8.49752716,1819.0,1818.8,4.593]
[1746476168246,5.49752716,1819.0,1818.8,4.593]
[1746476168463,3.0,1818.9,1818.8,4.593]
[1746476168788,3.0,1818.9,1818.8,5.79172651]
[1746476169166,8.49740806,1819.1,1818.8,5.79172651]
[1746476169365,0.06871982,1819.1,1818.8,11.28973625]
[1746476169560,6.38603805,1819.2,1818.8,11.28973625]
[1746476169765,5.49682132,1819.3,1818.9,6.33867126]
[1746476169966,11.77495754,1819.4,1819.0,6.32594603]
[1746476170263,5.4968897,1819.3,1818.9,7.14686888]
[1746476170561,5.4968897,1819.3,1818.9,7.16725092]
[1746476170765,8.49674211,1819.3,1818.9,7.1674132]
[1746476170967,8.49674211,1819.3,1819.0,0.66828673]
[1746476171502,3.0,1819.3,1819.0,6.16580576]
[1746476171794,3.0,1819.3,1819.1,5.51758707]
[1746476171963,3.0,1819.3,1819.2,4.593]
[1746476173626,3.0,1819.3,1819.2,5.3821]
[1746476173915,3.0,1819.3,1819.2,6.47003222]
[1746476174322,3.0,1819.3,1819.2,5.3821]
[1746476176121,15.72454145,1819.6,1819.2,10.87902172]
[1746476176305,3.0,1819.5,1819.3,5.51697609]
[1746476176506,10.2287,1819.6,1819.4,5.49631746]
[1746476176691,0.7883,1819.8,1819.4,4.28861071]
[1746476177024,3.0,1819.7,1819.5,0.7891]
[1746476177224,3.0,1819.7,1819.6,4.591]
[1746476177820,8.49541133,1819.7,1819.6,4.591]
[1746476179519,8.49648765,1819.4,1819.1,0.8141]
[1746476179722,8.49648765,1819.4,1819.2,4.591]
[1746476182921,5.4972239,1819.1,1818.7,0.8205]
[1746476183087,5.4972239,1819.1,1818.8,4.591]
[1746476183417,9.31144972,1819.3,1818.9,5.51799891]
[1746476183817,14.80834569,1819.3,1818.9,5.51799891]
[1746476184021,14.80834276,1819.3,1818.9,5.51799891]
[1746476184193,8.49674972,1819.3,1819.0,6.31801993]
[1746476184920,5.49704218,1819.2,1818.9,1.87942342]
[1746476186340,5.49704218,1819.2,1818.9,7.37724214]
[1746476186695,10.99418907,1819.2,1818.9,1.87942342]
[1746476187232,8.49680355,1819.3,1818.9,7.37708084]
[1746476187437,5.49706423,1819.2,1818.9,1.87942342]
[1746476189239,10.99422802,1819.2,1818.9,1.87942342]
[1746476189435,5.49729203,1819.1,1818.9,1.87942342]
[1746476189730,5.49706423,1819.2,1818.9,1.87942342]
[1746476191137,9.31170024,1819.3,1818.9,1.87942342]
[1746476191343,5.49702628,1819.2,1818.9,7.37714118]
[1746476192218,5.49702628,1819.2,1818.9,1.87942342]
[1746476192844,5.49725939,1819.1,1818.8,10.89400912]
[1746476195730,10.99422188,1819.2,1818.8,10.89400912]
[1746476196229,5.49723759,1819.1,1818.8,10.89400912]
[1746476196428,5.49702628,1819.2,1818.8,10.89400912]
[1746476197605,9.31170481,1819.3,1818.9,5.49767067]
[1746476197934,14.80856914,1819.3,1818.9,5.49767067]
[1746476198139,5.49698188,1819.2,1818.9,5.49767067]
[1746476199365,9.31170481,1819.3,1818.9,5.49767067]
[1746476199540,9.31170481,1819.3,1819.0,5.49737442]
[1746476199740,8.49680481,1819.3,1819.0,5.49737442]
[1746476199916,3.0,1819.3,1819.1,6.31359413]
[1746476200120,3.0,1819.3,1819.2,4.589]
[1746476201159,8.49661957,1819.3,1819.2,4.589]
[1746476202211,10.72863403,1819.3,1819.2,4.589]
[1746476202814,9.32932799,1819.3,1819.2,4.589]
[1746476203652,9.3246874,1819.3,1819.2,4.589]
[1746476205117,9.25597898,1819.3,1819.2,4.589]
[1746476205451,0.8331,1819.5,1819.2,4.589]
[1746476205658,3.0,1819.4,1819.2,4.589]
[1746476205839,3.0,1819.5,1819.2,5.61798397]
[1746476206043,3.0,1819.5,1819.2,10.85598961]
[1746476207422,8.49615255,1819.5,1819.2,5.3593]
[1746476207650,13.99239582,1819.5,1819.2,5.3593]
[1746476207952,8.49615255,1819.5,1819.2,5.3593]
[1746476209657,8.49615255,1819.5,1819.2,10.85616289]
[1746476209825,8.49615255,1819.5,1819.2,6.99461666]
[1746476210028,8.49615255,1819.5,1819.2,12.49141423]
[1746476210856,3.0,1819.5,1819.2,12.49141423]
[1746476211150,3.0,1819.5,1819.2,12.49132538]
[1746476212110,3.0,1819.5,1819.2,17.9880751]
[1746476212315,3.0,1819.5,1819.3,7.31578379]
[1746476213347,3.0,1819.5,1819.3,7.31563611]
[1746476215345,3.0,1819.5,1819.3,12.812051]
[1746476215549,3.0,1819.5,1819.3,7.2952224]
[1746476215748,3.0,1819.5,1819.3,7.31558033]
[1746476216332,9.32871666,1819.7,1819.4,0.73155803]
[1746476216640,14.82439822,1819.7,1819.4,0.73155803]
[1746476217449,3.0,1819.5,1819.4,0.73155803]
[1746476217959,8.49601538,1819.5,1819.3,1.79880751]
[1746476218155,8.49601538,1819.5,1819.2,4.589]
[1746476218355,8.49601538,1819.5,1819.2,10.08587032]
[1746476220255,9.28231538,1819.5,1819.2,10.08587032]
[1746476221226,3.7863,1819.5,1819.2,10.08587032]
[1746476221557,3.7863,1819.5,1819.3,1.00858703]
[1746476223749,3.0,1819.5,1819.3,6.50509728]
[1746476223946,3.0,1819.5,1819.3,12.021891]
[1746476224152,3.0,1819.8,1819.4,5.49630295]
[1746476224353,8.49522009,1819.8,1819.5,5.51630304]
[1746476224863,8.49522009,1819.8,1819.5,0.02034554]
[1746476225244,8.49522009,1819.8,1819.4,5.49614692]
[1746476225441,8.49522009,1819.8,1819.5,0.54961469]
[1746476225663,5.49558718,1819.7,1819.5,0.54961469]
[1746476225869,10.99125526,1819.7,1819.3,7.30856545]
[1746476226033,5.49558718,1819.7,1819.3,7.30856545]
[1746476226363,5.49558718,1819.7,1819.3,7.71294459]
[1746476226563,10.99123032,1819.7,1819.3,7.71294459]
[1746476226862,3.0,1819.5,1819.3,1.00858703]
[1746476227158,5.49588777,1819.6,1819.3,1.00858703]
[1746476227532,5.49630968,1819.5,1819.2,4.589]
[1746476227733,6.28612198,1819.4,1819.2,4.589]
[1746476228158,0.7897,1819.4,1819.2,4.589]
[1746476229064,0.7897,1819.4,1819.3,4.586]
[1746476229732,3.0,1819.5,1819.3,4.586]
[1746476230134,3.0,1819.5,1819.3,11.09085534]
[1746476230336,3.0,1819.5,1819.3,5.59427564]
[1746476231266,3.0,1819.5,1819.3,11.09086465]
[1746476231567,3.0,1819.5,1819.3,5.59427564]
[1746476231941,8.49604837,1819.5,1819.3,5.59427564]
[1746476232570,9.31954837,1819.5,1819.3,4.586]
[1746476232772,9.31954837,1819.5,1819.1,4.586]
[1746476232773,5.49710316,1819.2,1819.1,4.586]
[1746476233278,3.0,1819.2,1818.8,21.90018751]
[1746476233437,5.49782835,1818.9,1818.8,21.90018751]
[1746476233637,5.49782835,1818.9,1818.8,26.48618751]
[1746476233866,8.49773338,1819.0,1818.8,26.48618751]
[1746476234248,8.49773338,1819.0,1818.8,22.767]
[1746476237382,13.99551269,1819.0,1818.8,22.767]
[1746476237678,8.49773338,1819.0,1818.8,22.767]
[1746476241884,3.0,1819.0,1818.8,22.767]
[1746476242062,8.49753246,1819.0,1818.8,22.767]
[1746476243314,3.0,1819.0,1818.8,22.767]
[1746476243467,3.0,1819.0,1818.8,25.59353271]
[1746476243660,3.18728112,1819.3,1818.8,25.59353271]
[1746476243661,3.0,1819.3,1819.0,5.49726462]
[1746476244184,8.49673636,1819.3,1818.9,6.31696777]
[1746476244394,8.49673636,1819.3,1818.9,6.33735629]
[1746476244557,8.49673636,1819.3,1818.9,7.31834301]
[1746476245403,8.49673636,1819.3,1818.9,7.31833581]
[1746476245563,3.0,1819.3,1819.1,5.49719019]
[1746476245954,3.0,1819.3,1819.0,5.49731895]
[1746476246173,3.0,1819.5,1819.0,3.96448112]
[1746476246388,6.31777433,1819.6,1819.2,5.49675371]
[1746476246555,3.0,1819.5,1819.2,10.08375371]
[1746476246891,6.3177525,1819.6,1819.2,10.08375371]
[1746476247096,3.0,1819.5,1819.2,10.08375371]
[1746476247503,8.49612155,1819.5,1819.2,4.587]
[1746476247999,8.49612155,1819.5,1819.2,10.08391917]
[1746476248301,3.0,1819.5,1819.2,11.72235831]
[1746476249490,3.0,1819.5,1819.2,11.72220401]
[1746476249690,3.7531,1819.6,1819.2,7.00263914]
[1746476249897,3.821802,1819.6,1819.3,5.49638943]
[1746476250072,3.7531,1819.6,1819.3,5.49638943]
[1746476250269,3.7531,1819.6,1819.3,10.99285953]
[1746476250484,3.0,1819.7,1819.4,5.51653622]
[1746476250675,3.0,1819.7,1819.4,6.04782843]
[1746476251463,3.0,1819.7,1819.5,5.4960132]
[1746476251664,3.0,1819.7,1819.4,12.32814453]
[1746476252399,3.0,1819.7,1819.5,5.49589019]
[1746476252602,8.49500509,1819.9,1819.5,5.49589019]
[1746476253266,3.0,1819.7,1819.5,6.72867618]
[1746476253691,3.0,1819.7,1819.5,5.81978599]
[1746476254792,6.35310687,1819.6,1819.5,4.587]
[1746476255003,6.28441334,1819.6,1819.5,4.587]
[1746476256313,9.28441334,1819.6,1819.5,4.587]
[1746476256522,9.30114083,1819.4,1819.3,4.587]
[1746476256810,5.4974271,1819.1,1818.8,0.7967]
[1746476257110,5.4974271,1819.1,1819.0,4.585]
[1746476257812,5.56579504,1819.2,1819.0,4.585]
[1746476258314,5.4972239,1819.1,1819.0,4.585]
[1746476258672,8.4972239,1819.1,1819.0,4.585]
[1746476258993,3.0,1819.1,1818.9,5.49781641]
[1746476259177,3.0,1819.1,1819.0,5.13478164]
[1746476265614,3.0,1819.3,1819.1,0.7653]
[1746476266119,8.49675091,1819.3,1819.1,0.7653]
[1746476266511,8.49646124,1819.4,1819.1,0.7653]
[1746476266699,8.56517186,1819.4,1819.1,0.7653]
[1746476266901,5.49676665,1819.3,1819.1,0.7653]
[1746476270932,8.49646124,1819.4,1819.1,0.7653]
[1746476271131,8.56517344,1819.4,1819.1,0.7653]
[1746476271500,14.06177908,1819.4,1819.1,0.7653]
[1746476271701,5.49663084,1819.3,1819.1,0.7653]
[1746476272304,3.0,1819.2,1819.1,0.7653]
[1746476272505,8.49692729,1819.2,1819.0,5.92548164]
[1746476272708,8.49692729,1819.2,1819.0,5.13478164]
[1746476273036,8.49692729,1819.2,1819.0,4.585]
[1746476273406,8.56563993,1819.2,1819.0,4.585]
[1746476273766,5.4972239,1819.1,1819.0,4.585]
[1746476275251,5.4972239,1819.1,1818.8,4.585]
[1746476275252,8.49800585,1818.9,1818.8,4.585]
[1746476275563,3.0,1818.9,1818.8,4.585]
[1746476275915,8.49782835,1818.9,1818.8,4.585]
[1746476276112,3.0,1818.9,1818.8,4.585]
[1746476279180,5.49823656,1818.8,1818.4,24.49332798]
[1746476279321,5.56705072,1818.8,1818.5,7.0353328]
[1746476279521,5.49831769,1818.8,1818.5,7.0353328]
[1746476280551,8.49798191,1818.9,1818.6,5.49871876]
[1746476280855,3.0,1818.9,1818.7,5.49835979]
[1746476281062,3.0,1818.9,1818.7,6.68180927]
[1746476281252,3.0,1818.9,1818.7,1.18344948]
[1746476281871,3.0,1818.9,1818.7,6.68187242]
[1746476282531,3.0,1818.9,1818.7,1.18344948]
[1746476283170,3.0,1818.9,1818.7,6.68185365]
[1746476283366,3.0,1818.9,1818.8,0.66818537]
[1746476284366,3.0,1818.9,1818.7,6.68187729]
[1746476284532,3.0,1818.9,1818.7,1.18344948]
[1746476285269,8.4979317,1818.9,1818.7,1.18344948]
[1746476285783,3.0,1818.9,1818.7,1.18344948]
[1746476287166,3.0,1818.9,1818.7,6.68179912]
[1746476287469,3.0,1818.9,1818.8,0.66817991]
[1746476287841,3.0,1818.9,1818.8,6.16631054]
[1746476288043,3.0,1818.9,1818.8,6.98821054]
[1746476290675,3.0,1818.9,1818.8,1.49007991]
[1746476291576,3.0,1818.9,1818.8,0.66817991]
[1746476291780,3.0,1818.9,1818.7,6.68179252]
[1746476292138,3.0,1818.9,1818.8,4.585]
[1746476292349,3.0,1818.9,1818.8,10.08313063]
[1746476292649,16.52013509,1819.3,1818.9,6.32022018]
[1746476292853,3.0,1819.2,1818.9,6.32022018]
[1746476293086,3.0,1819.2,1819.0,0.63202202]
[1746476293899,8.49696984,1819.2,1819.0,0.63202202]
[1746476295341,8.49696984,1819.2,1818.8,10.08294735]
[1746476295736,8.49696984,1819.2,1818.8,15.58092726]
[1746476296182,8.49696984,1819.2,1818.9,5.49782617]
[1746476297676,5.49733779,1819.1,1818.8,10.08294735]
[1746476297854,6.25301087,1819.0,1818.8,4.585]
[1746476298257,5.49811199,1818.9,1818.7,4.585]
[1746476298980,9.32182755,1819.0,1818.7,4.585]
[1746476298981,9.25310822,1819.0,1818.7,4.585]
[1746476299140,5.49792566,1818.9,1818.7,4.585]
[1746476299348,9.25310822,1819.0,1818.7,4.585]
[1746476299545,5.49792212,1818.9,1818.7,4.585]
[1746476300381,9.32182899,1819.0,1818.7,4.585]
[1746476300679,9.32182899,1819.0,1818.7,10.08336931]
[1746476300882,9.32182899,1819.0,1818.7,4.585]
[1746476301279,3.82412638,1819.0,1818.7,10.0833699]
[1746476301470,3.7554,1819.0,1818.7,11.64360178]
[1746476301781,3.0,1819.0,1818.7,11.64345864]
[1746476301978,0.8296,1819.2,1818.8,0.85260759]
[1746476302157,5.49667262,1819.3,1819.0,5.49729317]
[1746476302475,8.49704086,1819.2,1818.9,5.49773055]
[1746476302658,8.49704086,1819.2,1818.9,6.68052246]
[1746476302986,3.0,1819.2,1819.0,5.49738112]
[1746476303545,3.0,1819.2,1819.0,5.4973214]
[1746476303745,3.0,1819.2,1819.0,10.99463331]
[1746476303981,3.0,1819.2,1819.0,5.49731191]
[1746476304145,3.0,1819.2,1819.0,6.71509002]
[1746476304346,3.0,1819.2,1819.0,16.79742872]
[1746476304547,3.0,1819.4,1819.1,11.74598807]
[1746476304747,3.0,1819.4,1819.2,5.49681153]
[1746476305715,3.0,1819.4,1819.1,6.24894376]
[1746476305914,11.8480358,1819.5,1819.1,6.24894376]
[1746476306119,3.0,1819.4,1819.1,6.24894376]
[1746476308518,3.0,1819.4,1819.2,5.49677253]
[1746476308737,3.0,1819.4,1819.1,11.74597493]
[1746476308932,3.0,1819.4,1819.2,1.17459749]
[1746476309225,8.49644675,1819.4,1819.1,5.49700133]
[1746476309433,3.0,1819.4,1819.1,5.49700133]
[1746476309925,8.49633147,1819.4,1819.0,11.30016462]
[1746476310143,8.49633147,1819.4,1819.0,11.3001061]
[1746476310425,9.32585524,1819.2,1819.0,4.585]
[1746476311169,3.8288,1819.2,1818.7,6.32176756]
[1746476311436,3.0,1819.1,1819.0,4.584]
[1746476319249,3.06871505,1819.3,1819.0,10.08152611]
[1746476319550,3.18728112,1819.6,1819.2,5.49670791]